Cogmind - Beta 13 X2 @@@ ROGUE MODE // 2024.01.06 @ 01:54:01 Player: Minty Result: Destroyed by as-70842 with Assembled Heavy Rifle Performance ------------- Evolutions (1) 500 Regions Visited (3) 600 Robots Destroyed (10) 50 Value Destroyed (409) 409 Prototype IDs (0) 0 Alien Tech Used (0) 0 Bonus (0) 0 TOTAL SCORE: 1559 Bonus ------- None Cogmind --------- Core Integrity 0/400 Matter 280/300 Energy 90/100 System Corruption 1% Temperature Cool (0) Movement Core (50) Location -9/Mines Parts ------- > --- POWER (1) -------- (None) > --- PROPULSION (3) --- (None) > --- UTILITY (3) ------ (None) > --- WEAPON (2) ------- (None) > --- INVENTORY (5) ---- Light Ion Engine Improved Heat Sink Small Storage Unit Peak State ------------ > --- POWER ------------ Light Nuclear Core > --- PROPULSION ------- Aluminum Leg Aluminum Leg Aluminum Leg > --- UTILITY ---------- Improved Heat Sink Small Storage Unit > --- WEAPON ----------- Assault Rifle > --- INVENTORY -------- Light Ion Engine Aluminum Leg Aluminum Leg Small Laser Particle Gun Grenade Launcher Blade Trap Blade Trap [Rating: 11] Favorites ----------- Power Light Ion Engine Engine Light Ion Engine Power Core Light Nuclear Core Propulsion Aluminum Leg Leg Aluminum Leg Utility Small Storage Unit Device Improved Heat Sink Storage Small Storage Unit Protection Backup Plating I Weapon Assault Rifle Energy Gun Small Laser Ballistic Gun Assault Rifle Launcher Grenade Launcher Build | -11 -10 -9 -9 ------- Run | Yrd Mat Mat Min Slots Evolved 2 | . . 2 . Power . | . . . . Propulsion 1 | . . 1 . Utility 1 | . . 1 . Weapon . | . . . . Parts Attached 17 | . 4 1 12 Power 1 | . . . 1 Engine . | . . . . Core 1 | . . . 1 Reactor . | . . . . Propulsion 8 | . 1 1 6 Treads . | . . . . Leg 8 | . 1 1 6 Wheel . | . . . . Hover . | . . . . Flight . | . . . . Utility 1 | . . . 1 Device 1 | . . . 1 Storage . | . . . . Processor . | . . . . Hackware . | . . . . Protection . | . . . . Artifact . | . . . . Weapon 7 | . 3 . 4 Energy Gun 2 | . . . 2 Energy Cannon . | . . . . Ballistic Gun 3 | . 2 . 1 Ballistic Cannon . | . . . . Launcher 2 | . 1 . 1 Special Weapon . | . . . . Impact Weapon . | . . . . Slashing Weapon . | . . . . Piercing Weapon . | . . . . Special Melee Weapon . | . . . . Unidentified Prototypes . | . . . . Parts Lost 14 | . . 1 13 Power 2 | . . . 2 Propulsion 6 | . . 1 5 Utility 1 | . . . 1 Weapon 5 | . . . 5 Highest Loss Streak 10 | . . 1 10 To Critical Strikes . | . . . . Average Slot Usage (%) 72 | . 85 82 66 Engine 6 | . 14 11 3 Core 3 | . . . 5 Leg 27 | . 28 28 27 Device 1 | . . . 2 Storage 11 | . 14 11 11 Protection 3 | . . 10 3 Ballistic Gun 16 | . 27 22 12 Naked Turns . | . . . . Heaviest Build 13 | 11 12 13 13 Greatest Support 30 | 20 20 30 30 Greatest Overweight (x) 1 | . . . 1 Average Overweight (x) . | . . . . Largest Inventory Capacity 8 | . 8 8 8 Average Capacity 8 | . 8 8 8 Most Carried 8 | . 7 7 8 Average Carried 6 | . 5 6 6 Final Capacity 8 | 8 8 8 5 Final Carried 7 | 6 7 6 3 Class Distribution -------------------- 100% | Mutant Dominant Class ---------------- Mutant | -10/Materials Mutant | -9/Materials Mutant | -9/Mines Resources | -11 -10 -9 -9 ----------- Run | Yrd Mat Mat Min Matter Collected 512 | 175 51 114 172 Remotely . | . . . . Salvage Created 387 | . 60 56 271 Parts 16 | . 3 3 10 Haulers Intercepted . | . . . . Recyclers Shooed 1 | . . 1 . Parts Field Recycled . | . . . . Retrieved Matter . | . . . . Parts Self-Destructed . | . . . . Prevented . | . . . . Kills | -11 -10 -9 -9 ------- Run | Yrd Mat Mat Min Combat Hostiles Destroyed 12 | . 2 1 9 Guns 10 | . 1 1 8 AOE 2 | . 1 . 1 Classes Destroyed 4 | . 1 1 2 Grunt 8 | . 2 . 6 Sentry 1 | . . 1 . Demolisher 1 | . . . 1 Assembled 2 | . . . 2 Best Kill Streak 3 | . 2 1 3 Combat Bots Only 3 | . 2 1 3 Max Kills in Single Turn 1 | . 1 1 1 Gunslinging . | . . . . Exploded 1 | . 1 . 1 Melee . | . . . . Uniques/NPCs Destroyed . | . . . . Combat | -11 -10 -9 -9 -------- Run | Yrd Mat Mat Min Hostile Shots Fired 114 | . 20 9 85 Missed 22 | . 2 4 16 Damage Taken 1716 | . 242 97 1377 Core 454 | . 43 . 411 Absorbed by Shields . | . . . . Core Remaining (%) 91 | 100 82 . . Volleys Fired 46 | . 10 5 31 Largest 2 | . 2 2 2 Hottest 105 | . 50 40 105 Shots Fired 80 | . 20 10 50 Gun 77 | . 18 10 49 Cannon . | . . . . Launcher 3 | . 2 . 1 Special . | . . . . Kinetic 68 | . 18 10 40 Thermal 9 | . . . 9 Explosive 3 | . 2 . 1 Electromagnetic . | . . . . Robot Hit Streak 13 | . 8 5 13 Robot Miss Streak 5 | . 2 2 5 Penetration Max . | . . . . Secondary Targets 1 | . . . 1 Max Gunslinging Chain 1 | . . . 1 Shots Hit Robots 52 | . 14 7 31 Core Hits 30 | . 5 4 21 Critical Kills . | . . . . Critical Parts Destroyed . | . . . . Critical Strikes . | . . . . Melee Attacks . | . . . . Impact . | . . . . Slashing . | . . . . Piercing . | . . . . Sneak Attacks . | . . . . Combat Hostiles . | . . . . Follow-up Attacks . | . . . . Damage Inflicted 897 | . 263 94 540 Guns 655 | . 167 89 399 Cannons . | . . . . Explosions 232 | . 96 . 136 Melee . | . . . . Ramming 10 | . . 5 5 Kinetic 576 | . 167 89 320 Thermal 79 | . . . 79 Explosive 232 | . 96 . 136 Electromagnetic . | . . . . Impact . | . . . . Slashing . | . . . . Piercing . | . . . . Highest Corruption 1 | . . 1 1 Average Corruption 1 | . . 1 1 Corruption Purged . | . . . . Corruption Blocked . | . . . . Effects 5 | . . . 5 Matter Fused 1 | . . . 1 Energy Discharges 1 | . . . 1 Data Loss (major) 1 | . . . 1 Misfires 1 | . . . 1 Weapon Failures 1 | . . . 1 Overload Shots . | . . . . Overflow Damage . | . . . . Projectiles . | . . . . Explosions . | . . . . Melee . | . . . . Knockbacks . | . . . . Impact . | . . . . Kinetic . | . . . . Secondary . | . . . . Self-Inflicted Damage 34 | . . . 34 Shots 1 | . . . 1 Rammed . | . . . . Targets Rammed 5 | . . 2 3 Kicked 5 | . . 2 3 Crushed . | . . . . Highest Temperature 42 | . 8 . 42 Average Temperature 9 | . 3 . 15 Received Heat Transfer 414 | . 135 33 246 Siege Activations . | . . . . Robots Corrupted . | . . . . Combat Hostiles . | . . . . Parts Fried . | . . . . Impact Corruptions . | . . . . Robots Melted . | . . . . Combat Hostiles . | . . . . Parts Melted . | . . . . Heat Transferred 187 | . . . 187 Parts Sabotaged . | . . . . Parts Stolen . | . . . . Parts Stripped . | . . . . Power Chain Reactions . | . . . . Missiles Intercepted . | . . . . Alert | -11 -10 -9 -9 ------- Run | Yrd Mat Mat Min Peak Influence 170 | . 64 106 170 Initial 40 | . . 26 40 Average 87 | . 36 53 112 Maximum Alert Level . | . . . . Low Security (%) 100 | . 100 100 100 Level 1 . | . . . . Level 2 . | . . . . Level 3 . | . . . . Level 4 . | . . . . Level 5 . | . . . . High Security . | . . . . Max Security . | . . . . Squads Dispatched 1 | . . 1 . Investigation . | . . . . Extermination . | . . . . Reinforcement 1 | . . 1 . Assault . | . . . . Garrison . | . . . . Intercept . | . . . . Searches Triggered . | . . . . Construction Impeded . | . . . . Haulers Reinforced . | . . . . Active Scanning Responses . | . . . . Cargo Convoy Interrupts . | . . . . Stealth | -11 -10 -9 -9 --------- Run | Yrd Mat Mat Min Distress Signals . | . . . . Communications Jammed . | . . . . Distress Signals . | . . . . Times Spotted 29 | . 2 8 19 Peak Tracking Total 10 | . 2 6 10 Tactical Retreats 2 | . . 1 1 Traps | -11 -10 -9 -9 ------- Run | Yrd Mat Mat Min Traps Triggered 2 | . . 2 . Indirectly . | . . . . Trap Hack Attempts . | . . . . Triggered . | . . . . Disarmed . | . . . . Reprogrammed . | . . . . Reused 3 | . . . 3 Traps Extracted . | . . . . Installed 4 | . . . 4 Triggered 2 | . . . 2 Most Traps Carried 4 | . . . 4 Machines | -11 -10 -9 -9 ---------- Run | Yrd Mat Mat Min Machines Disabled . | . . . . Max in Single Turn . | . . . . Machines Repaired . | . . . . Machines Dismantled . | . . . . Machines Sabotaged . | . . . . Overloaded Fab Kills . | . . . . Hacking | -11 -10 -9 -9 --------- Run | Yrd Mat Mat Min Machines Accessed 2 | . . 2 . Terminals 1 | . . 1 . Fabricators . | . . . . Repair Stations 1 | . . 1 . Recycling Units . | . . . . Scanalyzers . | . . . . Garrison Access . | . . . . Total Hacks 5 | . . 5 . Successful 1 | . . 1 . Failed 4 | . . 4 . Catastrophic 1 | . . 1 . Database Lockouts . | . . . . Manual 2 | . . 2 . Terminals 2 | . . 2 . Fabricators . | . . . . Repair Stations 3 | . . 3 . Recycling Units . | . . . . Scanalyzers . | . . . . Garrison Access . | . . . . Terminal Hacks . | . . . . Fabricator Hacks . | . . . . Repair Station Hacks 1 | . . 1 . Refit 1 | . . 1 . Recycling Unit Hacks . | . . . . Scanalyzer . | . . . . Garrison Access Hacks . | . . . . Unauthorized Hacks . | . . . . Terminals . | . . . . Fabricators . | . . . . Repair Stations . | . . . . Recycling Units . | . . . . Scanalyzers . | . . . . Garrison Access . | . . . . Data Cores Recovered . | . . . . Used . | . . . . Hacking Detections 1 | . . 1 . Full Trace Events . | . . . . Feedback Events . | . . . . Feedback Blocked . | . . . . Robot Schematics Acquired . | . . . . Robots Built . | . . . . Authchips . | . . . . Time . | . . . . Total Robot Build Rating . | . . . . Part Schematics Acquired . | . . . . Parts Built . | . . . . Authchips . | . . . . Time . | . . . . Total Part Build Rating . | . . . . Parts Repaired . | . . . . Time . | . . . . Parts Recycled . | . . . . Recycled Matter . | . . . . Retrieved Matter . | . . . . Retrieved Components . | . . . . Parts Scanalyzed . | . . . . Part Schematics Acquired . | . . . . Parts Damaged . | . . . . Bothacking | -11 -10 -9 -9 ------------ Run | Yrd Mat Mat Min Used RIF Installer . | . . . . Robots Hacked . | . . . . Non-combat . | . . . . Combat . | . . . . Robot Hacks Applied . | . . . . Relay Couplers Released . | . . . . Fabnet Peak Effective % . | . . . . Robots Rewired . | . . . . Allies Hacked . | . . . . Hacks Repelled . | . . . . Allies | -11 -10 -9 -9 -------- Run | Yrd Mat Mat Min Total Allies . | . . . . Largest Group . | . . . . Highest-Rated Group . | . . . . Highest-Rated Ally . | . . . . Total Orders . | . . . . Ally Attacks . | . . . . Total Damage . | . . . . Kills . | . . . . Allies Corrupted . | . . . . Allies Melted . | . . . . Intel | -11 -10 -9 -9 ------- Run | Yrd Mat Mat Min Robot Analysis Total . | . . . . Derelict Logs Recovered . | . . . . Drone Launches . | . . . . Drone Recoveries . | . . . . Exploration | -11 -10 -9 -9 ------------- Run | Yrd Mat Mat Min Turns Passed 785 | . 160 118 507 Spaces Moved 449 | 1 100 84 264 Core 34 | . . . 34 Treads . | . . . . Legs 415 | 1 100 84 230 Wheels . | . . . . Hover . | . . . . Flight . | . . . . Fastest Speed 100 | 120 120 120 100 Average Speed 118 | 120 120 120 117 Slowest Speed 120 | 120 120 120 120 Overloaded Moves . | . . . . Propulsion Burnouts . | . . . . Robots Hopped . | . . . . Cave-ins Triggered . | . . . . Exploration Rate (%) 20 | 2 25 17 37 Regions Visited 3 Branch Regions 1 Pre-discovered Areas . | . . . . Known Exits Taken . | . . . . Unknown Exits Taken 3 | 1 1 1 . Scrap Searched . | . . . . Spaces Dug . | . . . . Terrain Destroyed 30 | . 19 . 11 Melee . | . . . . Projectile . | . . . . AOE 30 | . 19 . 11 Terrain Rammed . | . . . . Walls Destroyed . | . . . . Machines Disabled . | . . . . Actions | -11 -10 -9 -9 --------- Run | Yrd Mat Mat Min Total 623 | . 120 91 412 Wait 85 | . . . 85 Move 446 | . 99 83 264 Hop . | . . . . Pick Up 7 | . 3 . 4 Fast Attach 3 | . . . 3 Attach 6 | . . 1 5 Detach 2 | . . . 2 Swap 8 | . 4 . 4 Drop 11 | . 4 . 7 Fire 46 | . 10 5 31 Melee . | . . . . Ram . | . . . . Kick 5 | . . 2 3 Crush . | . . . . Escape Stasis . | . . . . Rewire . | . . . . Trap 4 | . . . 4 Miscellaneous . | . . . . Route ------- -11/Scrapyard -10/Materials -9/Materials -9/Mines History --------- Turn | Location | Event 1 | -11/Scrapyard | Discovered new exit (range 0) 1 | -11/Scrapyard | Entered Materials 142 | -10/Materials | Discovered new exit (range 16) 161 | -10/Materials | Entered another Materials area 161 | -9/Materials | Evolved 2 slots: Propulsion x1, Utility x1 260 | -9/Materials | Discovered new exit (range 16) 279 | -9/Materials | Entered Mines 301 | -9/Mines | Build established: Mutant 348 | -9/Mines | Found a hidden stash of uninstalled traps 458 | -9/Mines | Lost 3 parts (1p1u1w) 686 | -9/Mines | Assembled infested the area 691 | -9/Mines | Assisted by a Guerilla fighting off Assembled 744 | -9/Mines | Core integrity fell below 50% 769 | -9/Mines | Core integrity fell below 20% 785 | -9/Mines | Lost 10 parts (1p5n4w) 786 | -9/Mines | Destroyed by as-70842 with Assembled Heavy Rifle Last Messages --------------- 00718_ D-53 Grenadier knocked back. 00720_ The unstable cave ceiling collapses. 00721_ U7-Q5J(h) destroyed. 00721_ R-06 Scavenger destroyed. 00721_ U-05 Engineer lays Concrete. 00724_ The unstable cave ceiling collapses. 00724_ as-75707 destroyed. 00724_ U-05 Engineer lays Concrete. 00725_ U-05 Engineer builds a Wall. 00727_ Aluminum Leg destroyed. 00743_ Particle Gun destroyed. 00743_ Aluminum Leg destroyed. 00745_ D-53 Grenadier destroyed. 00746_ The unstable cave ceiling collapses. 00753_ as-02936 destroyed. 00754_ Sml. Laser destroyed. 00770_ Dropped Blade Trap. 00770_ Installed Blade Trap. 00772_ as-86706 triggered Blade Trap. 00772_ Massive razor-sharp blades shoot up from within the floor. Map ----- +----------------------------------------------------+ | #### #??????????????????????????????????????? | | #??????????????????????????????????????? | | ### ##??????????????????????????????????????? | | ??## ##???????????????????????????????????????? | | ???######????????????????????????????????????????? | | ?????????????????????????????????????????????????? | | ?????????????????????????????????????????????????? | | ?????????????????????????????????????????????????? | | ##?????????"""???????????????????????????????????? | | ##????????"""???????????????????????????????????? | | ##???????""????????????????????????????????????? | | ##?????? ????????????????????????????????????? | | #?????? ????????????????????????????????????? | | """ ##????? ###??????????????????????????????????? | | """ #??##""% ???????????????????????????????????? | | """ ####"#%#????????????????????????????????????? | | "#????????????????????????????????????? | | !###??????????????????????????????????? | | ######### # ##?????????????????????????????????? | | ??????## # ##????###?????????????????????????? | | ??????# ????## ##??????###???????????????? | | ?????## ##???# #?????? ##?? ???????????? | | ?????# %|# # #???## ##???? ##%= ??????????? | | ?????# # #????# #??? |!=???????????? | | ??????# # #????## a##?# =%%[ ??????????? | | ??????# ## #####?# @## %%[* ??????????? | | ??????# ## ### % [#???????????????? | | ???????# ## ## #????????????????? | | ???????# # ### a ##????????????????? | | ???????## ### ######?????????????????? | | ???????# ! % " #?# #??????????????????????? | | ???????# # |%### ##?????????????????????? | | ???????# # =* #?????????????????????? | | #??????######## # #?????????????????????? | | ##????????????##### #### #?????????????????????? | | #????????????????# ###??# #?????????????????????? | | [#????????????????# ##???# #?????????????????????? | | #??????????????### #???# #?????????????????????? | | ##??????????????# #???# #?????????????????????? | | #?????????####### #???# #?????????????????????? | | ??? % #???# ?????????????????????? | | ??????????###### #??? ?????????????????????? | | ???????????????### ##??? ?????????????????????? | | ?????????????????####???? ?????????????????????? | | ????????????????????????? ?????????????????????? | | ????????????????????????? ?????????????????????? | | ????????????????????????? ?????????????????????? | | ????????????????????????? ?????????????????????? | | ????????????????????????? ?????????????????????? | | ????????????????????????? ?????????????????????? | +----------------------------------------------------+ Best States ------------- Heat Dissipation 42 Energy Generation 14 Energy Capacity 160 Matter Stores 300 Matter Capacity 300 Sight Range 16 Terrain Scan Density 10 Armor Coverage 80 Evasion (%) 55 Item Schematics ----------------- None Robot Schematics ------------------ None Fabricated ------------ Nothing Alien Tech Used ----------------- None Achievements -------------- None Challenges ------------ None Game ------ Seed MicroCryofiberSuperbattery Manual? 0 Play Time 00:07:18 Cumulative 572.7 hours Start 2024.01.06 @ 01:49:26 End 2024.01.06 @ 01:54:01 Sessions 1 Manual Loads 0 Difficulty Rogue Special Mode None Game No. 472 Rogue 199 Adventurer 123 Explorer 150 Win Type - Total 25 Types 19/0/4/1/0/0/0/1/0 Lore% 77 Gallery% 90 Achievement% 75 Wizard Run 0 Options --------- ASCII 0 Keyboard 1 Movement Numpad Keybinds 0 Fullscreen 2 Font 18/X11Bold Map View 76x50 Zoom Use 0% Tactical HUD 1 Map Filters NONE Filters NONE Steam 1 RUN: a68cf2ac-6c89-4634-9be9-24429cfd802c